Cogmind - Beta 14 @@@ ROGUE MODE // 2025.03.21 @ 20:54:02 Player: King Of Bel Result: Destroyed by K3-T38(f) with Tearclaws Performance ------------- Evolutions (3) 1500 Regions Visited (6) 1200 Robots Destroyed (6) 30 Value Destroyed (185) 185 Prototype IDs (3) 60 Alien Tech Used (0) 0 Bonus (0) 0 TOTAL SCORE: 2975 Bonus ------- None Cogmind --------- Core Integrity 0/700 Matter 257/300 Energy 100/100 System Corruption 13% Temperature Cool (0) Movement Core (350) Ox6 Location -7/Lower Caves Parts ------- > --- POWER (1) -------- (None) > --- PROPULSION (5) --- (None) > --- UTILITY (5) ------ Large Storage Unit > --- WEAPON (2) ------- (None) > --- INVENTORY (15) --- Medium Matter Pod (20) Actuator Array Improved Light Cannon Scythe Peak State ------------ > --- POWER ------------ Ion Engine > --- PROPULSION ------- Aerolev Unit Aerolev Unit Aerolev Unit > --- UTILITY ---------- Large Storage Unit Advanced Targeting Computer System Shield > --- WEAPON ----------- Heavy EM Shotgun Heavy EM Shotgun > --- INVENTORY -------- Medium Matter Pod Actuator Array Improved Light Cannon Scythe [Rating: 28] Favorites ----------- Power Nuclear Core Engine Ion Engine Power Core Nuclear Core Propulsion Aerolev Unit Wheel Compact Wheel Hover Unit Aerolev Unit Flight Unit Improved Flight Unit Utility System Shield Device Actuator Array Storage Large Storage Unit Processor Advanced Targeting Computer Hackware System Shield Weapon Scythe Energy Gun Heavy EM Shotgun Energy Cannon Light EM Pulse Cannon Ballistic Gun Light Assault Rifle Ballistic Cannon Improved Light Cannon Slashing Weapon Scythe Special Melee Weapon Improved Datajack Build | -11 -10 -10 -9 -8 -7 -7 ------- Run | Yrd Mat Min Mat Mat Fac Low Slots Evolved 6 | . . . 2 2 2 . Power . | . . . . . . . Propulsion 3 | . . . 1 1 1 . Utility 3 | . . . 1 1 1 . Weapon . | . . . . . . . Parts Attached 26 | 6 1 . 2 14 3 . Power 3 | 1 . . . 1 1 . Engine 2 | 1 . . . . 1 . Core 1 | . . . . 1 . . Reactor . | . . . . . . . Propulsion 8 | 2 . . 1 5 . . Treads . | . . . . . . . Leg . | . . . . . . . Wheel 2 | 2 . . . . . . Hover 3 | . . . . 3 . . Flight 3 | . . . 1 2 . . Utility 7 | 1 1 . . 5 . . Device 2 | . . . . 2 . . Storage 3 | 1 1 . . 1 . . Processor 1 | . . . . 1 . . Hackware 1 | . . . . 1 . . Protection . | . . . . . . . Artifact . | . . . . . . . Weapon 8 | 2 . . 1 3 2 . Energy Gun 2 | . . . . . 2 . Energy Cannon 1 | . . . 1 . . . Ballistic Gun 2 | 2 . . . . . . Ballistic Cannon 1 | . . . . 1 . . Launcher . | . . . . . . . Special Weapon . | . . . . . . . Impact Weapon . | . . . . . . . Slashing Weapon 1 | . . . . 1 . . Piercing Weapon . | . . . . . . . Special Melee Weapon 1 | . . . . 1 . . Unidentified Prototypes 3 | . . . 1 1 1 . Parts Lost 21 | . . 5 2 5 8 1 Power 3 | . . 1 . 1 1 . Propulsion 9 | . . 2 1 2 4 . Utility 4 | . . 1 . 1 1 1 Weapon 5 | . . 1 1 1 2 . Highest Loss Streak 7 | . . 5 6 3 7 1 To Critical Strikes . | . . . . . . . Average Slot Usage (%) 48 | . 90 88 22 51 45 8 Engine 2 | . 14 11 . . 1 . Core 2 | . . . . 5 . . Wheel 3 | . 28 23 . . . . Hover 3 | . . . . 1 16 . Flight 7 | . . . 11 13 2 . Device 4 | . . . . 9 . . Storage 5 | . 18 25 . . 7 7 Processor 3 | . . . . 4 7 1 Hackware 4 | . . . . 6 5 . Ballistic Gun 3 | . 28 25 . . . . Ballistic Cannon 1 | . . . . 2 . . Slashing Weapon 3 | . . . . 6 . . Special Melee Weapon 1 | . . . . 2 . . Peak Build Rating 28 | 6 7 7 5 24 28 4 Average Rating 12 | 4 6 6 4 17 17 1 On Entrance 6 | . 6 7 2 3 20 4 Naked Turns 4 | . . . 4 . . . Heaviest Build 33 | 12 14 14 4 20 33 20 Greatest Support 32 | 32 32 32 5 24 24 3 Greatest Overweight (x) 6 | . . 4 . 3 6 6 Average Overweight (x) . | . . . . . . 6 Largest Inventory Capacity 15 | 8 8 8 8 15 15 15 Average Capacity 8 | 6 8 8 5 5 15 15 Most Carried 4 | . 1 1 1 4 4 4 Average Carried 2 | . . 1 1 1 4 4 Final Capacity 15 | 8 8 8 5 15 15 15 Final Carried 4 | . 1 1 1 4 4 4 Class Distribution -------------------- 100% | Mutant Dominant Class ---------------- Mutant | -10/Materials Mutant | -10/Mines Mutant | -9/Materials Mutant | -8/Materials Mutant | -7/Factory Mutant | -7/Lower Caves Resources | -11 -10 -10 -9 -8 -7 -7 ----------- Run | Yrd Mat Min Mat Mat Fac Low Matter Collected 389 | 231 . 58 . 100 . . Remotely . | . . . . . . . Salvage Created 270 | . . 93 . 120 57 . Parts 18 | . . 5 . 9 4 . Haulers Intercepted 1 | . . . . . 1 . Recyclers Shooed . | . . . . . . . Parts Field Recycled . | . . . . . . . Retrieved Matter . | . . . . . . . Parts Self-Destructed . | . . . . . . . Prevented . | . . . . . . . Kills | -11 -10 -10 -9 -8 -7 -7 ------- Run | Yrd Mat Min Mat Mat Fac Low Combat Hostiles Destroyed 5 | . . 2 . 3 . . Melee 3 | . . . . 3 . . Guns 2 | . . 2 . . . . Classes Destroyed 4 | . . 1 . 2 1 . Hauler 1 | . . . . . 1 . Swarmer 1 | . . . . 1 . . Grunt 3 | . . 2 . 1 . . Sentry 1 | . . . . 1 . . Best Kill Streak 2 | . . 2 . 2 1 . Combat Bots Only 2 | . . 2 . 2 . . Max Kills in Single Turn 1 | . . 1 . 1 1 . Gunslinging . | . . . . . . . Exploded . | . . . . . . . Melee 1 | . . . . 1 . . Uniques/NPCs Destroyed . | . . . . . . . Combat | -11 -10 -10 -9 -8 -7 -7 -------- Run | Yrd Mat Min Mat Mat Fac Low Hostile Shots Fired 271 | . . 22 28 82 118 21 Missed 88 | . . 3 15 23 39 8 Damage Taken 2641 | . . 531 115 625 1118 252 Core 1249 | . . 175 31 340 538 165 Absorbed by Shields 60 | . . . . 60 . . Core Remaining (%) 65 | 100 . 30 92 38 . . Volleys Fired 13 | . . 11 1 1 . . Largest 2 | . . 2 1 1 . . Hottest 56 | . . 40 56 39 . . Shots Fired 24 | . . 22 1 1 . . Gun 22 | . . 22 . . . . Cannon 2 | . . . 1 1 . . Launcher . | . . . . . . . Special . | . . . . . . . Kinetic 23 | . . 22 . 1 . . Thermal . | . . . . . . . Explosive . | . . . . . . . Electromagnetic 1 | . . . 1 . . . Robot Hit Streak 6 | . . 6 . 1 . . Robot Miss Streak 3 | . . 3 1 . . . Penetration Max . | . . . . . . . Secondary Targets . | . . . . . . . Shots Hit Robots 20 | . . 14 . 6 . . Core Hits 15 | . . 7 . 4 4 . Critical Kills . | . . . . . . . Critical Parts Destroyed . | . . . . . . . Critical Strikes 2 | . . . . 2 . . Sever 2 | . . . . 2 . . Melee Attacks 9 | . . . . 9 . . Impact . | . . . . . . . Slashing 9 | . . . . 9 . . Piercing . | . . . . . . . Sneak Attacks . | . . . . . . . Combat Hostiles . | . . . . . . . Follow-up Attacks . | . . . . . . . Damage Inflicted 322 | . . 104 . 187 31 . Guns 104 | . . 104 . . . . Cannons 19 | . . . . 19 . . Explosions . | . . . . . . . Melee 156 | . . . . 156 . . Ramming 43 | . . . . 12 31 . Kinetic 123 | . . 104 . 19 . . Thermal . | . . . . . . . Explosive . | . . . . . . . Electromagnetic . | . . . . . . . Impact . | . . . . . . . Slashing 156 | . . . . 156 . . Piercing . | . . . . . . . Highest Corruption 13 | . . . . 1 13 13 Average Corruption 8 | . . . . 1 6 13 Corruption Purged . | . . . . . . . Corruption Blocked . | . . . . . . . Effects 5 | . . . . . 2 3 Message Errors 1 | . . . . . 1 . Matter Fused 3 | . . . . . 1 2 Misdirections 1 | . . . . . . 1 Overload Shots . | . . . . . . . Overflow Damage . | . . . . . . . Projectiles . | . . . . . . . Explosions . | . . . . . . . Melee . | . . . . . . . Knockbacks 1 | . . . . 1 . . Impact . | . . . . . . . Kinetic 1 | . . . . 1 . . Secondary . | . . . . . . . Self-Inflicted Damage 19 | . . . . 5 14 . Shots . | . . . . . . . Rammed 9 | . . . . 4 5 . Targets Rammed 9 | . . . . 4 5 . Kicked . | . . . . . . . Crushed . | . . . . . . . Highest Temperature 12 | . . 12 2 . . . Average Temperature 7 | . . 8 1 . . . Received Heat Transfer 309 | . . 72 6 201 30 . Siege Activations . | . . . . . . . Robots Corrupted . | . . . . . . . Combat Hostiles . | . . . . . . . Parts Fried . | . . . . . . . Impact Corruptions . | . . . . . . . Robots Melted . | . . . . . . . Combat Hostiles . | . . . . . . . Parts Melted . | . . . . . . . Heat Transferred . | . . . . . . . Parts Sabotaged . | . . . . . . . Parts Stolen 1 | . . . . . . 1 Parts Stripped . | . . . . . . . Power Chain Reactions . | . . . . . . . Alert | -11 -10 -10 -9 -8 -7 -7 ------- Run | Yrd Mat Min Mat Mat Fac Low Peak Influence 109 | . 15 55 35 109 76 . Initial 49 | . . 5 1 14 49 . Average 37 | . 7 25 2 52 39 . Maximum Alert Level . | . . . . . . . Low Security (%) 100 | 100 100 100 100 100 100 . Level 1 . | . . . . . . . Level 2 . | . . . . . . . Level 3 . | . . . . . . . Level 4 . | . . . . . . . Level 5 . | . . . . . . . High Security . | . . . . . . . Max Security . | . . . . . . . Squads Dispatched 4 | . . . 1 1 2 . Investigation . | . . . . . . . Extermination . | . . . . . . . Reinforcement 4 | . . . 1 1 2 . Assault . | . . . . . . . Garrison . | . . . . . . . Intercept . | . . . . . . . Searches Triggered . | . . . . . . . Construction Impeded . | . . . . . . . Haulers Reinforced 1 | . . . . . 1 . Active Scanning Responses . | . . . . . . . Cargo Convoy Interrupts . | . . . . . . . Stealth | -11 -10 -10 -9 -8 -7 -7 --------- Run | Yrd Mat Min Mat Mat Fac Low Distress Signals . | . . . . . . . Communications Jammed . | . . . . . . . Distress Signals . | . . . . . . . Times Spotted 48 | . 1 14 10 12 10 1 Peak Tracking Total 19 | . 1 19 8 6 7 1 Tactical Retreats 5 | . . . 1 2 2 . Traps | -11 -10 -10 -9 -8 -7 -7 ------- Run | Yrd Mat Min Mat Mat Fac Low Traps Triggered . | . . . . . . . Indirectly . | . . . . . . . Trap Hack Attempts . | . . . . . . . Triggered . | . . . . . . . Disarmed . | . . . . . . . Reprogrammed . | . . . . . . . Reused . | . . . . . . . Traps Extracted . | . . . . . . . Installed . | . . . . . . . Triggered . | . . . . . . . Machines | -11 -10 -10 -9 -8 -7 -7 ---------- Run | Yrd Mat Min Mat Mat Fac Low Machines Disabled . | . . . . . . . Max in Single Turn . | . . . . . . . Machines Repaired . | . . . . . . . Machines Dismantled . | . . . . . . . Machines Sabotaged . | . . . . . . . Overloaded Fab Kills . | . . . . . . . Hacking | -11 -10 -10 -9 -8 -7 -7 --------- Run | Yrd Mat Min Mat Mat Fac Low Machines Accessed 1 | . . . . . 1 . Terminals . | . . . . . . . Fabricators 1 | . . . . . 1 . Repair Stations . | . . . . . . . Recycling Units . | . . . . . . . Scanalyzers . | . . . . . . . Garrison Access . | . . . . . . . Total Hacks 1 | . . . . . 1 . Successful . | . . . . . . . Failed 1 | . . . . . 1 . Catastrophic 1 | . . . . . 1 . Database Lockouts . | . . . . . . . Manual . | . . . . . . . Terminals . | . . . . . . . Fabricators 1 | . . . . . 1 . Repair Stations . | . . . . . . . Recycling Units . | . . . . . . . Scanalyzers . | . . . . . . . Garrison Access . | . . . . . . . Terminal Hacks . | . . . . . . . Fabricator Hacks . | . . . . . . . Repair Station Hacks . | . . . . . . . Recycling Unit Hacks . | . . . . . . . Scanalyzer . | . . . . . . . Garrison Access Hacks . | . . . . . . . Unauthorized Hacks . | . . . . . . . Terminals . | . . . . . . . Fabricators . | . . . . . . . Repair Stations . | . . . . . . . Recycling Units . | . . . . . . . Scanalyzers . | . . . . . . . Garrison Access . | . . . . . . . Data Cores Recovered . | . . . . . . . Used . | . . . . . . . Hacking Detections 1 | . . . . . 1 . Full Trace Events . | . . . . . . . Feedback Events . | . . . . . . . Feedback Blocked . | . . . . . . . Robot Schematics Acquired . | . . . . . . . Robots Built . | . . . . . . . Authchips . | . . . . . . . Time . | . . . . . . . Total Robot Build Rating . | . . . . . . . Part Schematics Acquired . | . . . . . . . Parts Built . | . . . . . . . Authchips . | . . . . . . . Time . | . . . . . . . Total Part Build Rating . | . . . . . . . Parts Repaired . | . . . . . . . Time . | . . . . . . . Parts Recycled . | . . . . . . . Recycled Matter . | . . . . . . . Retrieved Matter . | . . . . . . . Retrieved Components . | . . . . . . . Parts Scanalyzed . | . . . . . . . Part Schematics Acquired . | . . . . . . . Parts Damaged . | . . . . . . . Bothacking | -11 -10 -10 -9 -8 -7 -7 ------------ Run | Yrd Mat Min Mat Mat Fac Low Used RIF Installer . | . . . . . . . Robots Hacked . | . . . . . . . Non-combat . | . . . . . . . Combat . | . . . . . . . Robot Hacks Applied . | . . . . . . . Relay Couplers Released . | . . . . . . . Fabnet Peak Effective % . | . . . . . . . Robots Rewired . | . . . . . . . Allies Hacked . | . . . . . . . Hacks Repelled . | . . . . . . . Allies | -11 -10 -10 -9 -8 -7 -7 -------- Run | Yrd Mat Min Mat Mat Fac Low Total Allies . | . . . . . . . Largest Group . | . . . . . . . Highest-Rated Group . | . . . . . . . Highest-Rated Ally . | . . . . . . . Total Orders . | . . . . . . . Ally Attacks . | . . . . . . . Total Damage . | . . . . . . . Kills . | . . . . . . . Allies Corrupted . | . . . . . . . Allies Melted . | . . . . . . . Intel | -11 -10 -10 -9 -8 -7 -7 ------- Run | Yrd Mat Min Mat Mat Fac Low Robot Analysis Total . | . . . . . . . Derelict Logs Recovered . | . . . . . . . Drone Launches . | . . . . . . . Drone Recoveries . | . . . . . . . Exploration | -11 -10 -10 -9 -8 -7 -7 ------------- Run | Yrd Mat Min Mat Mat Fac Low Turns Passed 706 | 41 34 54 57 319 126 75 Spaces Moved 717 | 34 32 23 122 306 178 22 Core 75 | 4 . 4 6 33 6 22 Treads . | . . . . . . . Legs . | . . . . . . . Wheels 81 | 30 32 19 . . . . Hover 194 | . . . . 22 172 . Flight 367 | . . . 116 251 . . Fastest Speed 34 | 50 100 100 40 34 42 350 Average Speed 83 | 94 100 113 40 87 64 350 Slowest Speed 350 | 100 100 250 50 250 350 350 Overloaded Moves . | . . . . . . . Propulsion Burnouts . | . . . . . . . Robots Hopped . | . . . . . . . Cave-ins Triggered . | . . . . . . . Exploration Rate (%) 13 | 3 10 13 21 30 10 5 Regions Visited 6 Branch Regions 2 Pre-discovered Areas . | . . . . . . . Known Exits Taken . | . . . . . . . Unknown Exits Taken 6 | 1 1 1 1 1 1 . Scrap Searched . | . . . . . . . Spaces Dug . | . . . . . . . Terrain Destroyed . | . . . . . . . Melee . | . . . . . . . Projectile . | . . . . . . . AOE . | . . . . . . . Terrain Rammed . | . . . . . . . Walls Destroyed . | . . . . . . . Machines Disabled . | . . . . . . . Actions | -11 -10 -10 -9 -8 -7 -7 --------- Run | Yrd Mat Min Mat Mat Fac Low Total 775 | 39 33 33 127 336 185 22 Wait . | . . . . . . . Move 711 | 33 31 22 121 305 177 22 Hop . | . . . . . . . Pick Up 1 | . 1 . . . . . Fast Attach 27 | 6 1 . 3 14 3 . Attach . | . . . . . . . Detach 3 | . . . . 3 . . Swap . | . . . . . . . Drop 2 | . . . 2 . . . Fire 13 | . . 11 1 1 . . Melee 9 | . . . . 9 . . Ram 9 | . . . . 4 5 . Kick . | . . . . . . . Crush . | . . . . . . . Escape Stasis . | . . . . . . . Rewire . | . . . . . . . Trap . | . . . . . . . Miscellaneous . | . . . . . . . Route ------- -11/Scrapyard -10/Materials -10/Mines -9/Materials -8/Materials -7/Factory -7/Lower Caves History --------- Turn | Location | Event 19 | -11/Scrapyard | Discovered new exit (range 15) 42 | -11/Scrapyard | Entered Materials 57 | -10/Materials | Discovered new exit (range 10) 76 | -10/Materials | Entered Mines 99 | -10/Mines | Assembled infested the area 104 | -10/Mines | Assisted by a Guerilla fighting off Assembled 122 | -10/Mines | Discovered new exit (range 8) 129 | -10/Mines | Core integrity fell below 50% 130 | -10/Mines | Entered Materials 130 | -9/Materials | Evolved 2 slots: Propulsion x1, Utility x1 167 | -9/Materials | Lost 6 parts (1p3n1u1w) 181 | -9/Materials | Discovered new exit (range 16) 187 | -9/Materials | Entered another Materials area 187 | -8/Materials | Evolved 2 slots: Propulsion x1, Utility x1 310 | -8/Materials | Build established: Mutant 474 | -8/Materials | Core integrity fell below 50% 490 | -8/Materials | Lost 3 parts (1p2n) 504 | -8/Materials | Discovered new exit (range 5) 506 | -8/Materials | Entered Factory 506 | -7/Factory | Evolved 2 slots: Propulsion x1, Utility x1 591 | -7/Factory | Discovered new exit (range 13) 607 | -7/Factory | System corruption reached 10% 608 | -7/Factory | Core integrity fell below 50% 632 | -7/Factory | Entered Lower Caves 637 | -7/Lower Caves | Lost 7 parts (1p3n1u2w) 645 | -7/Lower Caves | Core integrity fell below 20% 707 | -7/Lower Caves | Destroyed by K3-T38(f) with Tearclaws Last Messages --------------- 00597_ U-05 Engineer repairs door. 00599_ K-01 Serf destroyed. 00601_ P-60 Hacker resets S-27 Virus, system corruption cleaned. 00602_ Hvy. EM Shotgun destroyed. 00602_ Ion Engine destroyed. 00606_ Slammed into Y-54 Guardian. 00606_ System Shield destroyed. 00606_ System corrupted by crushing effect (+5). 00606_ Destabilizing: System corrupted (+2). 00606_ Aerolev Unit destroyed. 00615_ Slammed into T-07 Excavator. 00625_ Slammed into K-01 Serf. 00625_ Destabilizing: System corrupted (+2). 00627_ Penetrated by Slug. 00628_ System corrupted: Matter fused (-7). LOCATION=UNKNOWN GOAL=ESCAPE 00640_ Adv. Targeting Computer ripped off. 00654_ System corrupted: Matter fused (-8). 00669_ System corrupted: Matter fused (-6). Map ----- +----------------------------------------------------+ | ?????????????????????????????????????????????????? | | ?????????????????????????????????????????????????? | | ?????????????????????????????????????????????????? | | ????????????????????????????????##???????????????? | | ??????????????????????????????## #???????????????? | | ??????????????????????????????# ##??????????????? | | ?????????????????????????????## #??????????????? | | ????????????????????????????## #???????????????? | | ??????????????????????????### ##???????????????? | | ???????????????????????#### ##????????????????? | | ???????????????????????# ##?????????????????? | | ???????????????????????# ## #??????????????????? | | ???????????????????????# ## #??????????????????? | | ???????????????????????# ## #??????????????????? | | ????????????????#####??# ## #????? ????????????? | | ??????????????### ### ## #???? ???????????? | | ??????????????# ## #??# ???????????? | | ??????????????# #?# ??????????? | | ??????????????## ### ## ## ???????????? | | ????????????????????## ## ?????????????? | | ?????????????????????# ## ??????????????? | | ?????????????????????## #? ?? ????????????? | | ??????????????????????# ## #????? ???????????? | | ??????????????????????# #??????????????????? | | ??????????????????????##f #??????????????????? | | ???????????????????????# @ ##??????????????????? | | ????????????????????#$ ##???????????????????? | | ????????????????????#### #????????????????????? | | ???????????????????????# #???????????????????? | | ???????????????????????## #???????????????????? | | ????????????????????????# ???????????????????? | | ????????????????????????## ??????????????????? | | ??????????????????????????######?????????????????? | | ?????????????????????????????????????????????????? | | ?????????????????????????????????????????????????? | | ?????????????????????????????????????????????????? | | ?????????????????????????????????????????????????? | | ?????????????????????????????????????????????????? | | ?????????????????????????????????????????????????? | | ?????????????????????????????????????????????????? | | ?????????????????????????????????????????????????? | | ?????????????????????????????????????????????????? | | ?????????????????????????????????????????????????? | | ?????????????????????????????????????????????????? | | ?????????????????????????????????????????????????? | | ?????????????????????????????????????????????????? | | ?????????????????????????????????????????????????? | | ?????????????????????????????????????????????????? | | ?????????????????????????????????????????????????? | | ?????????????????????????????????????????????????? | +----------------------------------------------------+ Best States ------------- Heat Dissipation 34 Energy Generation 14 Energy Capacity 250 Matter Stores 300 Matter Capacity 400 Sight Range 16 Terrain Scan Density 10 Evasion (%) 62 Targeting Accuracy 8 Defensive Hacking 10 Item Schematics ----------------- None Robot Schematics ------------------ None Fabricated ------------ Nothing Alien Tech Used ----------------- None Achievements -------------- Fist Fight Challenges ------------ None Game ------ Seed SmallHybridScrapsphere Manual? 0 Play Time 00:11:42 Cumulative 4.9 hours Start 2025.03.21 @ 20:43:02 End 2025.03.21 @ 20:54:02 Sessions 1 Manual Loads 0 Difficulty Rogue Special Mode None Game No. 14 Rogue 10 Adventurer 4 Explorer 0 Win Type - Total 0 Types 0/0/0/0/0/0/0/0/0 Lore% 9 Gallery% 11 Achievement% 12 Wizard Run 0 Options --------- Layout 0 ASCII 0 Keyboard 0 Movement Numpad Keybinds 0 Fullscreen 2 Font 36/Smallcaps Map View 38x25 Zoom Use 100% Tactical HUD 1 Map Filters NONE Filters NONE Steam 1 RUN: 64b863bf-a18c-48d0-8400-e1742c1d8e03